[Event "XXX Roquetas de Mar Open 2019"]
[Site "Roquetas de Mar"]
[Date "2019.01.06"]
[Round "7"]
[White "Gascon Del Nogal, Jose Rafael"]
[Black "Sabuk, Piotr"]
[Result "0-1"]
[ECO "E10"]
[WhiteElo "2486"]
[BlackElo "2395"]
[Annotator "ChessBase"]
[PlyCount "58"]
[EventDate "2019.01.02"]
[EventType "swiss"]
[EventCountry "ESP"]
[SourceTitle "playchess.com"]
[Source "ChessBase"]
[SourceQuality "1"]
[TimeControl "5400+30"]

1. d4 {[%emt 0:02:17]} Nf6 {[%emt 0:00:11]} 2. c4 {[%emt 0:00:07]} e6 {[%emt 0:00:09]} 3. Nf3 {[%emt 0:00:06]} d5 {[%emt 0:02:38]} 4. e3 {[%emt 0:01:24]} c5 {[%emt 0:04:07]} 5. Nc3 {[%emt 0:01:14]} cxd4 {[%emt 0:01:12]} 6. exd4 {[%emt 0:00:13]} Bb4 {[%emt 0:01:23]} 7. cxd5 {[%emt 0:00:33]} Nxd5 {[%emt 0:03:10]} 8. Qc2 {[%emt 0:00:58]} Qc7 {[%emt 0:13:43]} 9. Bd2 {[%emt 0:01:33]} Be7 {[%emt 0:05:04]} 10. a3 {[%emt 0:06:32]} Nxc3 {[%emt 0:05:59]} 11. Bxc3 {[%emt 0:00:42]} Nd7 {[%emt 0:01:24]} 12. Bd3 {[%emt 0:01:37]} Nf6 {[%emt 0:01:09]} 13. O-O {[%emt 0:00:21]} O-O {[%emt 0:00:35]} 14. Rfe1 {[%emt 0:01:03]} g6 {[%emt 0:07:33]} 15. Ne5 {[%emt 0:02:30]} Nd5 {[%emt 0:03:16]} 16. g3 {[%emt 0:31:51]} b6 {[%emt 0:12:02]} 17. h4 {[%emt 0:00:42]} Bb7 {[%emt 0:00:31]} 18. h5 {[%emt 0:01:11]} Bf6 {[%emt 0:05:01]} 19. Ng4 {[%emt 0:06:41]} Bg7 {[%emt 0:00:37]} 20. h6 {[%emt 0:23:09]} Bh8 {[%emt 0:00:49]} 21. Ne5 {[%emt 0:09:13]} Rac8 {[%emt 0:01:14]} 22. Rac1 {[%emt 0:02:50]} Bf6 {[%emt 0:00:53]} 23. Qd2 {[%emt 0:00:32]} Qd8 {[%emt 0:07:14]} 24. Ng4 {[%emt 0:00:09]} Bg5 {[%emt 0:00:05]} 25. f4 {[%emt 0:00:08]} Bxf4 {[%emt 0:01:58]} 26. gxf4 {[%emt 0:00:06]} Qh4 {[%emt 0:00:03]} 27. Nh2 {[%emt 0:00:22]} Qg3+ {[%emt 0:03:05]} 28. Kf1 {[%emt 0:00:13]} Nxf4 {[%emt 0:00:18]} 29. Re3 {[%emt 0:00:38]} Bg2+ {[%emt 0:00:21]} 0-1

[Event "XXX Roquetas de Mar Open 2019"]
[Site "Roquetas de Mar"]
[Date "2019.01.06"]
[Round "7"]
[White "Pap, Misa"]
[Black "Dardha, Daniel"]
[Result "1-0"]
[ECO "B22"]
[WhiteElo "2481"]
[BlackElo "2337"]
[Annotator "ChessBase"]
[PlyCount "106"]
[EventDate "2019.01.02"]
[EventType "swiss"]
[EventCountry "ESP"]
[SourceTitle "playchess.com"]
[Source "ChessBase"]
[SourceQuality "1"]
[TimeControl "5400+30"]

1. e4 {[%emt 0:09:29]} c5 {[%emt 0:00:00]} 2. c3 {[%emt 0:00:47]} Nf6 {[%emt 0:00:00]} 3. e5 {[%emt 0:00:10]} Nd5 {[%emt 0:00:00]} 4. Nf3 {[%emt 0:00:14]} e6 {[%emt 0:00:33]} 5. d4 {[%emt 0:00:08]} cxd4 {[%emt 0:00:06]} 6. cxd4 {[%emt 0:00:05]} b6 {[%emt 0:00:06]} 7. Bd3 {[%emt 0:01:00]} Ba6 {[%emt 0:00:10]} 8. Nc3 {[%emt 0:06:37]} Nxc3 {[%emt 0:00:15]} 9. bxc3 {[%emt 0:00:05]} Bxd3 {[%emt 0:00:09]} 10. Qxd3 {[%emt 0:00:06]} Nc6 {[%emt 0:00:11]} 11. Ng5 {[%emt 0:19:53]} h6 {[%emt 0:38:36]} 12. Ne4 {[%emt 0:09:57]} d5 {[%emt 0:21:05]} 13. exd6 {[%emt 0:02:29]} f5 {[%emt 0:00:33]} 14. d5 {[%emt 0:11:32]} exd5 {[%emt 0:04:07]} 15. Qxd5 {[%emt 0:08:21]} Qd7 {[%emt 0:00:21]} 16. Ng3 {[%emt 0:00:39]} Bxd6 {[%emt 0:08:49]} 17. Nxf5 {[%emt 0:00:13]} Be5 {[%emt 0:00:14]} 18. Qxd7+ {[%emt 0:00:07]} Kxd7 {[%emt 0:00:06]} 19. Bd2 {[%emt 0:01:08]} Ke6 {[%emt 0:02:09]} 20. Ng3 {[%emt 0:00:53]} Rhd8 {[%emt 0:05:20]} 21. Ke2 {[%emt 0:05:35]} Na5 {[%emt 0:01:57]} 22. Rhd1 {[%emt 0:03:10]} Nc4 {[%emt 0:03:44]} 23. Be1 {[%emt 0:00:35]} b5 {[%emt 0:01:40]} 24. Rab1 {[%emt 0:00:34]} a6 {[%emt 0:03:37]} 25. Ne4 {[%emt 0:00:19]} Rxd1 {[%emt 0:00:12]} 26. Rxd1 {[%emt 0:00:21]} Rc8 {[%emt 0:00:05]} 27. Rb1 {[%emt 0:03:49]} Kf5 {[%emt 0:00:55]} 28. f3 {[%emt 0:00:20]} Bxh2 {[%emt 0:02:21]} 29. Bf2 {[%emt 0:00:15]} Be5 {[%emt 0:01:51]} 30. Rd1 {[%emt 0:00:05]} Rc7 {[%emt 0:02:52]} 31. Rd8 {[%emt 0:00:55]} Kg6 {[%emt 0:00:37]} 32. Rd5 {[%emt 0:01:43]} Re7 {[%emt 0:01:31]} 33. Kd3 {[%emt 0:00:52]} Rc7 {[%emt 0:00:08]} 34. Nc5 {[%emt 0:00:41]} Rc6 {[%emt 0:00:37]} 35. Bd4 {[%emt 0:03:27]} Bf6 {[%emt 0:00:49]} 36. Nd7 {[%emt 0:02:39]} Kf7 {[%emt 0:01:17]} 37. Nxf6 {[%emt 0:01:02]} gxf6 {[%emt 0:00:06]} 38. f4 {[%emt 0:00:17]} Ke6 {[%emt 0:00:57]} 39. Rh5 {[%emt 0:00:20]} Nb2+ {[%emt 0:00:51]} 40. Kc2 {[%emt 0:02:37]} Nc4 {[%emt 0:00:20]} 41. g4 {[%emt 0:00:57]} Kf7 {[%emt 0:00:42]} 42. Rxh6 {[%emt 0:00:28]} Re6 {[%emt 0:00:02]} 43. f5 {[%emt 0:01:21]} Re2+ {[%emt 0:00:21]} 44. Kd3 {[%emt 0:01:12]} Rxa2 {[%emt 0:01:01]} 45. Rxf6+ {[%emt 0:00:06]} Ke7 {[%emt 0:00:04]} 46. g5 {[%emt 0:00:31]} Rd2+ {[%emt 0:00:36]} 47. Ke4 {[%emt 0:00:08]} b4 {[%emt 0:00:43]} 48. Bc5+ {[%emt 0:00:07]} Kd7 {[%emt 0:00:11]} 49. cxb4 {[%emt 0:00:16]} Rg2 {[%emt 0:00:39]} 50. g6 {[%emt 0:00:13]} Rg4+ {[%emt 0:00:08]} 51. Kd5 {[%emt 0:00:23]} Nd2 {[%emt 0:01:04]} 52. Rxa6 {[%emt 0:01:06]} Ne4 {[%emt 0:00:40]} 53. Ra7+ {[%emt 0:00:09]} Kd8 {[%emt 0:00:07] Kxe4} 1-0

[Event "XXX Roquetas de Mar Open 2019"]
[Site "Roquetas de Mar"]
[Date "2019.01.06"]
[Round "7"]
[White "Nguyen, Piotr"]
[Black "Nasuta, Grzegorz"]
[Result "1-0"]
[ECO "A05"]
[WhiteElo "2403"]
[BlackElo "2534"]
[Annotator "ChessBase"]
[PlyCount "53"]
[EventDate "2019.01.02"]
[EventType "swiss"]
[EventCountry "ESP"]
[SourceTitle "playchess.com"]
[Source "ChessBase"]
[SourceQuality "1"]
[TimeControl "5400+30"]

1. Nf3 {[%emt 0:00:00]} Nf6 {[%emt 0:00:00]} 2. b3 {[%emt 0:00:09]} c5 {[%emt 0:09:13]} 3. Bb2 {[%emt 0:02:18]} Nc6 {[%emt 0:01:29]} 4. c4 {[%emt 0:01:08]} e6 {[%emt 0:07:48]} 5. e3 {[%emt 0:06:45]} Be7 {[%emt 0:00:06]} 6. g3 {[%emt 0:12:19]} O-O {[%emt 0:05:25]} 7. Bg2 {[%emt 0:00:28]} d5 {[%emt 0:00:19]} 8. O-O {[%emt 0:01:07]} b6 {[%emt 0:17:40]} 9. Nc3 {[%emt 0:00:16]} Bb7 {[%emt 0:00:55]} 10. cxd5 {[%emt 0:00:50]} Nxd5 {[%emt 0:16:46]} 11. Nxd5 {[%emt 0:00:06]} Qxd5 {[%emt 0:00:06]} 12. d4 {[%emt 0:00:09]} Rad8 {[%emt 0:00:15]} 13. Ne5 {[%emt 0:01:13]} Qd6 {[%emt 0:01:05]} 14. dxc5 {[%emt 0:01:03]} Qxc5 {[%emt 0:01:59]} 15. Nd7 {[%emt 0:00:47]} Qg5 {[%emt 0:05:54]} 16. h4 {[%emt 0:00:59]} Qh6 {[%emt 0:00:24]} 17. Rc1 {[%emt 0:00:43]} Na5 {[%emt 0:22:55]} 18. Nxf8 {[%emt 0:20:44]} Bxg2 {[%emt 0:01:14]} 19. Kxg2 {[%emt 0:00:09]} Rxd1 {[%emt 0:00:06]} 20. Rfxd1 {[%emt 0:00:09]} Bxf8 {[%emt 0:00:06]} 21. Rc8 {[%emt 0:01:33]} Qh5 {[%emt 0:03:22]} 22. Ba3 {[%emt 0:06:24]} h6 {[%emt 0:00:09]} 23. Rxf8+ {[%emt 0:00:04]} Kh7 {[%emt 0:00:05]} 24. Rd7 {[%emt 0:00:16]} f6 {[%emt 0:02:05]} 25. Rxf6 {[%emt 0:01:26]} Qe5 {[%emt 0:00:07]} 26. Rff7 {[%emt 0:00:42]} Qe4+ {[%emt 0:00:06]} 27. Kh2 {[%emt 0:00:40]} 1-0

[Event "XXX Roquetas de Mar Open 2019"]
[Site "Roquetas de Mar"]
[Date "2019.01.06"]
[Round "7"]
[White "Bernabeu Lopez, Carlos Javier"]
[Black "Franco Ocampos, Zenon"]
[Result "0-1"]
[ECO "B44"]
[WhiteElo "2344"]
[BlackElo "2477"]
[Annotator "RC"]
[PlyCount "68"]
[EventDate "2019.01.02"]
[EventType "swiss"]
[EventCountry "ESP"]
[SourceTitle "playchess.com"]
[Source "ChessBase"]
[SourceQuality "1"]
[TimeControl "5400+30"]

1. e4 {[%emt 0:00:00]} c5 {[%emt 0:00:00]} 2. Nf3 {[%emt 0:00:00]} Nc6 {[%emt 0:00:00]} 3. d4 {[%emt 0:00:00]} cxd4 {[%emt 0:00:00]} 4. Nxd4 {[%emt 0:00:00]} e6 {[%emt 0:00:00]} 5. Nxc6 {[%emt 0:01:02]} bxc6 {[%emt 0:00:17]} 6. Bd3 {[%emt 0:00:18]} Bc5 {[%emt 0:00:32]} 7. O-O {[%emt 0:01:00]} Ne7 {[%emt 0:00:38]} 8. Nc3 {[%emt 0:06:56]} O-O {[%emt 0:01:40]} 9. Qh5 {[%emt 0:02:47]} f5 {[%emt 0:02:39]} 10. exf5 {[%emt 0:02:52]} Nxf5 {[%emt 0:07:06]} 11. Ne4 {[%emt 0:02:57]} g6 {[%emt 0:03:37]} 12. Qg4 {[%emt 0:06:26]} Be7 {[%emt 0:00:07]} 13. Ng3 {[%emt 0:01:24]} Kh8 {[%emt 0:07:16]} 14. Re1 {[%emt 0:07:17]} d6 {[%emt 0:03:47]} 15. Nxf5 {[%emt 0:01:34]} gxf5 {[%emt 0:01:05]} 16. Qh5 {[%emt 0:00:26]} Rb8 {[%emt 0:05:58]} 17. b3 {[%emt 0:06:22]} Bf6 {[%emt 0:00:46]} 18. Rb1 {[%emt 0:04:17]} e5 {[%emt 0:05:24]} 19. Bh6 {[%emt 0:01:42]} Bg7 {[%emt 0:00:24]} 20. Bg5 {[%emt 0:01:07]} Qe8 {[%emt 0:06:01]} 21. Qh4 {[%emt 0:08:31]} Rb7 {[%emt 0:04:42]} 22. Ba6 {[%emt 0:03:09]} Rbf7 {[%emt 0:00:08]} 23. Bxc8 {[%emt 0:00:07]} Qxc8 {[%emt 0:00:04]} 24. Be7 {[%emt 0:00:46]} Bf6 {[%emt 0:00:14]} 25. Bxf6+ {[%emt 0:00:03]} Rxf6 {[%emt 0:00:02]} 26. Rbd1 {[%emt 0:00:59]} Qc7 {[%emt 0:01:26]} 27. Qc4 {[%emt 0:01:13]} Rg6 {[%emt 0:02:03]} 28. Rd3 {[%emt 0:00:58]} d5 {[%emt 0:03:51]} 29. Rxd5 {[%emt 0:05:10]} Qg7 {[%emt 0:01:14]} 30. Rdxe5 {[%emt 0:00:41]} Rxg2+ {[%emt 0:00:11]} 31. Kh1 {[%emt 0:00:27]} Rg8 {[%emt 0:07:59]} 32. Qf1 {[%emt 0:00:26]} Qg4 {[%emt 0:02:21]} 33. R5e3 {[%emt 0:02:06]} f4 {[%emt 0:01:03]} 34. Rg3 {[%emt 0:00:26]} Rxh2+ {[%emt 0:00:23]} 0-1

[Event "XXX Roquetas de Mar Open 2019"]
[Site "Roquetas de Mar"]
[Date "2019.01.06"]
[Round "7"]
[White "Oglaza, Oskar"]
[Black "Kantor, Gergely"]
[Result "1/2-1/2"]
[ECO "C45"]
[WhiteElo "2320"]
[BlackElo "2514"]
[Annotator "ChessBase"]
[PlyCount "60"]
[EventDate "2019.01.02"]
[EventType "swiss"]
[EventCountry "ESP"]
[SourceTitle "playchess.com"]
[Source "ChessBase"]
[SourceQuality "1"]
[TimeControl "5400+30"]

1. e4 {[%emt 0:00:05]} e5 {[%emt 0:00:00]} 2. Nf3 {[%emt 0:00:05]} Nc6 {[%emt 0:00:00]} 3. d4 {[%emt 0:00:10]} exd4 {[%emt 0:00:00]} 4. Nxd4 {[%emt 0:00:04]} Nf6 {[%emt 0:00:00]} 5. Nxc6 {[%emt 0:00:05]} bxc6 {[%emt 0:00:00]} 6. e5 {[%emt 0:00:13]} Qe7 {[%emt 0:00:14]} 7. Qe2 {[%emt 0:00:09]} Nd5 {[%emt 0:00:10]} 8. c4 {[%emt 0:00:16]} Ba6 {[%emt 0:00:13]} 9. Nd2 {[%emt 0:00:50]} g6 {[%emt 0:11:15]} 10. Nf3 {[%emt 0:01:02]} Bg7 {[%emt 0:02:24]} 11. Bg5 {[%emt 0:00:58]} Qb4+ {[%emt 0:00:43]} 12. Qd2 {[%emt 0:01:27]} Qxd2+ {[%emt 0:03:55]} 13. Bxd2 {[%emt 0:00:18]} Nb6 {[%emt 0:07:02]} 14. b3 {[%emt 0:00:32]} d6 {[%emt 0:03:35]} 15. O-O-O {[%emt 0:00:52]} d5 {[%emt 0:08:31]} 16. cxd5 {[%emt 0:09:01]} Bxf1 {[%emt 0:00:05]} 17. Rhxf1 {[%emt 0:00:19]} cxd5 {[%emt 0:00:17]} 18. Be3 {[%emt 0:07:20]} c6 {[%emt 0:01:23]} 19. Kb1 {[%emt 0:06:42]} Rb8 {[%emt 0:12:15]} 20. Rc1 {[%emt 0:04:31]} Kd7 {[%emt 0:00:56]} 21. Bd4 {[%emt 0:00:10]} Rhg8 {[%emt 0:02:27]} 22. Rfe1 {[%emt 0:01:28]} Rbc8 {[%emt 0:02:52]} 23. Ng5 {[%emt 0:03:50]} Bh6 {[%emt 0:01:52]} 24. Nxf7 {[%emt 0:00:14]} Bxc1 {[%emt 0:02:30]} 25. e6+ {[%emt 0:00:04]} Ke7 {[%emt 0:02:20]} 26. Bc5+ {[%emt 0:00:04]} Kf6 {[%emt 0:00:15]} 27. Bd4+ {[%emt 0:00:05]} Ke7 {[%emt 0:00:21]} 28. Bc5+ {[%emt 0:00:04]} Kf6 {[%emt 0:00:13]} 29. Bd4+ {[%emt 0:00:07]} Ke7 {[%emt 0:00:41]} 30. Bc5+ {[%emt 0:00:03]} Kf6 {[%emt 0:00:04]} 1/2-1/2

[Event "XXX Roquetas de Mar Open 2019"]
[Site "Roquetas de Mar"]
[Date "2019.01.06"]
[Round "7"]
[White "Marechal, Andy"]
[Black "Morozov, Nichita"]
[Result "1/2-1/2"]
[ECO "C70"]
[WhiteElo "2318"]
[BlackElo "2437"]
[Annotator "NA RC"]
[PlyCount "68"]
[EventDate "2019.01.02"]
[EventType "swiss"]
[EventCountry "ESP"]
[SourceTitle "playchess.com"]
[Source "ChessBase"]
[SourceQuality "1"]
[TimeControl "5400+30"]

1. e4 {[%emt 0:00:00]} e5 {[%emt 0:05:02]} 2. Nf3 {[%emt 0:00:00]} Nc6 {[%emt 0:00:03]} 3. Bb5 {[%emt 0:00:00]} a6 {[%emt 0:00:42]} 4. Ba4 {[%emt 0:00:00]} Nge7 {[%emt 0:00:51]} 5. c3 {[%emt 0:00:56]} g6 {[%emt 0:00:04]} 6. d4 {[%emt 0:02:24]} exd4 {[%emt 0:00:04]} 7. Nxd4 {[%emt 0:00:42]} Bg7 {[%emt 0:00:27]} 8. O-O {[%emt 0:07:27]} O-O {[%emt 0:04:46]} 9. Bg5 {[%emt 0:03:08]} h6 {[%emt 0:01:51]} 10. Nxc6 {[%emt 0:02:47]} bxc6 {[%emt 0:00:04]} 11. Be3 {[%emt 0:00:11]} d6 {[%emt 0:01:00]} 12. Bd4 {[%emt 0:02:46]} c5 {[%emt 0:00:05]} 13. Bxg7 {[%emt 0:00:11]} Kxg7 {[%emt 0:00:03]} 14. Nd2 {[%emt 0:01:07]} Rb8 {[%emt 0:00:30]} 15. b3 {[%emt 0:09:05]} g5 {[%emt 0:04:02]} 16. Nc4 {[%emt 0:12:47]} Be6 {[%emt 0:09:35]} 17. Ne3 {[%emt 0:00:56]} Ng6 {[%emt 0:00:04]} 18. Qe2 {[%emt 0:05:45]} Qf6 {[%emt 0:00:41]} 19. Rac1 {[%emt 0:05:20]} Nf4 {[%emt 0:03:57]} 20. Qd2 {[%emt 0:01:53]} h5 {[%emt 0:05:48]} 21. f3 {[%emt 0:06:30]} Ng6 {[%emt 0:01:28]} 22. Nd5 {[%emt 0:02:22]} Bxd5 {[%emt 0:00:05]} 23. exd5 {[%emt 0:00:34]} Qf4 {[%emt 0:02:38]} 24. Qe2 {[%emt 0:03:31]} Qe5 {[%emt 0:03:57]} 25. Qxe5+ {[%emt 0:01:10]} dxe5 {[%emt 0:00:31]} 26. Rcd1 {[%emt 0:02:13]} Rfd8 {[%emt 0:01:42]} 27. Rfe1 {[%emt 0:00:55]} Kf6 {[%emt 0:00:40]} 28. Re4 {[%emt 0:01:22]} Nf4 {[%emt 0:00:56]} 29. Rc4 {[%emt 0:06:25]} Nxd5 {[%emt 0:00:05]} 30. Rxc5 {[%emt 0:00:19]} Nf4 {[%emt 0:00:06]} 31. Rc6+ {[%emt 0:02:03]} Ne6 {[%emt 0:00:38]} 32. b4 {[%emt 0:01:15]} Rxd1+ {[%emt 0:01:12]} 33. Bxd1 {[%emt 0:00:25]} Rb6 {[%emt 0:00:01]} 34. Rxb6 {[%emt 0:03:00]} cxb6 {[%emt 0:00:03]} 1/2-1/2

[Event "XXX Roquetas de Mar Open 2019"]
[Site "Roquetas de Mar"]
[Date "2019.01.06"]
[Round "7"]
[White "Bobadilla Viera, Jorge Samuel"]
[Black "Espinosa Aranda, Angel"]
[Result "0-1"]
[ECO "B56"]
[WhiteElo "2274"]
[BlackElo "2478"]
[Annotator "ChessBase"]
[PlyCount "92"]
[EventDate "2019.01.02"]
[EventType "swiss"]
[EventCountry "ESP"]
[SourceTitle "playchess.com"]
[Source "ChessBase"]
[SourceQuality "1"]
[TimeControl "5400+30"]

1. e4 {[%emt 0:01:39]} c5 {[%emt 0:00:00]} 2. Nf3 {[%emt 0:00:08]} d6 {[%emt 0:00:00]} 3. d4 {[%emt 0:00:11]} cxd4 {[%emt 0:00:00]} 4. Nxd4 {[%emt 0:00:02]} Nf6 {[%emt 0:00:07]} 5. Nc3 {[%emt 0:00:02]} Bd7 {[%emt 0:00:04]} 6. Bg5 {[%emt 0:02:21]} e6 {[%emt 0:00:05]} 7. Qd2 {[%emt 0:10:59]} a6 {[%emt 0:00:05]} 8. Be2 {[%emt 0:04:44]} Be7 {[%emt 0:09:52]} 9. O-O {[%emt 0:03:04]} Nc6 {[%emt 0:03:14]} 10. a4 {[%emt 0:03:55]} O-O {[%emt 0:03:39]} 11. Nb3 {[%emt 0:01:42]} Nb4 {[%emt 0:13:05]} 12. Rfd1 {[%emt 0:09:07]} Bc6 {[%emt 0:01:38]} 13. Bxf6 {[%emt 0:05:09]} Bxf6 {[%emt 0:00:08]} 14. Nb1 {[%emt 0:02:37]} a5 {[%emt 0:01:19]} 15. c3 {[%emt 0:00:24]} Na6 {[%emt 0:00:11]} 16. Qe3 Qc7 {[%emt 0:10:37]} 17. N1d2 {[%emt 0:03:08]} d5 {[%emt 0:01:08]} 18. exd5 {[%emt 0:00:49]} Bxd5 {[%emt 0:00:07]} 19. Bf3 {[%emt 0:03:09]} Rfe8 {[%emt 0:09:39]} 20. Re1 {[%emt 0:04:18]} Rad8 {[%emt 0:00:55]} 21. Bxd5 {[%emt 0:02:24]} Rxd5 {[%emt 0:00:05]} 22. Ne4 {[%emt 0:00:18]} Be7 {[%emt 0:02:31]} 23. Nd4 {[%emt 0:02:09]} Nc5 {[%emt 0:02:14]} 24. Nb5 {[%emt 0:01:35]} Qd8 {[%emt 0:00:38]} 25. Qe2 {[%emt 0:07:30]} Nd3 {[%emt 0:05:59]} 26. c4 {[%emt 0:05:31]} Rd7 {[%emt 0:00:08]} 27. Rf1 {[%emt 0:03:41]} f5 {[%emt 0:00:08]} 28. Nec3 {[%emt 0:01:09]} Bc5 {[%emt 0:00:25]} 29. Rad1 {[%emt 0:01:50]} e5 {[%emt 0:03:38]} 30. Nd5 {[%emt 0:00:40]} e4 {[%emt 0:00:16]} 31. Rxd3 {[%emt 0:03:52]} exd3 {[%emt 0:00:08]} 32. Qxd3 {[%emt 0:00:01]} Rf7 {[%emt 0:01:43]} 33. g3 {[%emt 0:01:44]} Qg5 {[%emt 0:02:55]} 34. Nbc3 {[%emt 0:03:41]} h5 {[%emt 0:01:27]} 35. Nf4 {[%emt 0:01:38]} h4 {[%emt 0:00:23]} 36. Kg2 {[%emt 0:00:36]} b6 {[%emt 0:07:35]} 37. Rd1 {[%emt 0:02:49]} Qf6 {[%emt 0:02:14]} 38. Qf3 {[%emt 0:03:44]} g5 {[%emt 0:00:46]} 39. Nfd5 {[%emt 0:00:06]} h3+ {[%emt 0:02:54]} 40. Kf1 {[%emt 0:00:01]} Qg6 {[%emt 0:00:38]} 41. Rd2 {[%emt 0:01:37]} Re5 {[%emt 0:00:39]} 42. Re2 {[%emt 0:01:32]} Rxe2 {[%emt 0:00:14]} 43. Qxe2 {[%emt 0:00:10]} f4 {[%emt 0:01:51]} 44. gxf4 {[%emt 0:00:49]} gxf4 {[%emt 0:00:07]} 45. Qf3 {[%emt 0:00:14]} Rg7 {[%emt 0:03:42]} 46. Qxf4 {[%emt 0:04:30]} Qd3+ 0-1